Cogmind - Beta 14 @@@ ROGUE MODE // 2025.01.19 @ 00:07:13 Player: refrshrs Result: Destroyed by G-47 Trooper with Particle Gun Performance ------------- Evolutions (1) 500 Regions Visited (2) 400 Robots Destroyed (24) 120 Value Destroyed (879) 879 Prototype IDs (0) 0 Alien Tech Used (0) 0 Bonus (0) 0 TOTAL SCORE: 1899 Bonus ------- None Cogmind --------- Core Integrity 0/400 Matter 300/300 Energy 30/100 System Corruption 0% Temperature Warm (123) Movement Core (350) Ox6 Location -9/Materials Parts ------- > --- POWER (1) -------- (None) > --- PROPULSION (3) --- (None) > --- UTILITY (3) ------ Large Storage Unit > --- WEAPON (2) ------- (None) > --- INVENTORY (15) --- Ion Engine Ion Engine Heat Sink Heat Sink Small Storage Unit Large Battery (200) High-capacity Matter Pod (200) Propulsion Shielding Welding Torch Peak State ------------ > --- POWER ------------ Improved Ion Engine > --- PROPULSION ------- Light Treads Light Treads Improved Treads > --- UTILITY ---------- Large Storage Unit Advanced Weight Redist. System Improved Light Armor Plating > --- WEAPON ----------- Heavy EM Pulse Gun Beam Rifle > --- INVENTORY -------- Ion Engine Ion Engine Heat Sink Heat Sink Small Storage Unit Large Battery High-capacity Matter Pod Propulsion Shielding Beam Rifle Light Assault Rifle Welding Torch [Rating: 18] Favorites ----------- Power Improved Ion Engine Engine Improved Ion Engine Propulsion Light Treads Treads Light Treads Leg Aluminum Leg Utility Large Storage Unit Device Advanced Weight Redist. System Storage Large Storage Unit Protection Improved Light Armor Plating Weapon Light Assault Rifle Energy Gun EM Pulse Gun Ballistic Gun Light Assault Rifle Build | -11 -10 -9 ------- Run | Yrd Mat Mat Slots Evolved 2 | . . 2 Power . | . . . Propulsion 1 | . . 1 Utility 1 | . . 1 Weapon . | . . . Parts Attached 25 | 7 3 15 Power 3 | 1 . 2 Engine 3 | 1 . 2 Core . | . . . Reactor . | . . . Propulsion 8 | 2 2 4 Treads 5 | 2 . 3 Leg 3 | . 2 1 Wheel . | . . . Hover . | . . . Flight . | . . . Utility 6 | 1 1 4 Device 2 | . . 2 Storage 2 | 1 . 1 Processor . | . . . Hackware . | . . . Protection 2 | . 1 1 Artifact . | . . . Weapon 8 | 3 . 5 Energy Gun 4 | 1 . 3 Energy Cannon . | . . . Ballistic Gun 4 | 2 . 2 Ballistic Cannon . | . . . Launcher . | . . . Special Weapon . | . . . Impact Weapon . | . . . Slashing Weapon . | . . . Piercing Weapon . | . . . Special Melee Weapon . | . . . Unidentified Prototypes . | . . . Parts Lost 17 | . . 17 Power 2 | . . 2 Propulsion 6 | . . 6 Utility 3 | . . 3 Weapon 6 | . . 6 Highest Loss Streak 10 | . . 10 To Critical Strikes . | . . . Average Slot Usage (%) 84 | . 94 80 Engine 10 | . 14 9 Treads 18 | . 23 16 Leg 4 | . 4 3 Device 6 | . . 10 Storage 11 | . 14 11 Protection 8 | . 8 7 Energy Gun 7 | . 14 4 Ballistic Gun 15 | . 14 16 Peak Build Rating 18 | 6 7 18 Average Rating 9 | 4 6 12 On Entrance 4 | . 6 7 Naked Turns . | . . . Heaviest Build 36 | 11 14 36 Greatest Support 63 | 40 40 63 Greatest Overweight (x) 7 | . 1 7 Average Overweight (x) . | . . . Largest Inventory Capacity 15 | 8 8 15 Average Capacity 12 | 6 8 14 Most Carried 13 | 3 8 13 Average Carried 7 | 1 5 9 Final Capacity 15 | 8 8 15 Final Carried 9 | 3 6 9 Class Distribution -------------------- 100% | Mutant Dominant Class ---------------- Mutant | -10/Materials Mutant | -9/Materials Resources | -11 -10 -9 ----------- Run | Yrd Mat Mat Matter Collected 650 | 219 93 338 Remotely . | . . . Salvage Created 1038 | . 251 787 Parts 58 | . 17 41 Haulers Intercepted . | . . . Recyclers Shooed . | . . . Parts Field Recycled . | . . . Retrieved Matter . | . . . Parts Self-Destructed . | . . . Prevented . | . . . Kills | -11 -10 -9 ------- Run | Yrd Mat Mat Combat Hostiles Destroyed 23 | . 5 18 Guns 23 | . 5 18 Classes Destroyed 4 | . 2 2 Watcher 1 | . 1 . Grunt 19 | . 5 14 Brawler 1 | . . 1 Sentry 3 | . . 3 Best Kill Streak 4 | . 2 4 Combat Bots Only 4 | . 2 4 Max Kills in Single Turn 1 | . 1 1 Gunslinging . | . . . Exploded . | . . . Melee . | . . . Uniques/NPCs Destroyed . | . . . Combat | -11 -10 -9 -------- Run | Yrd Mat Mat Hostile Shots Fired 223 | . 25 198 Missed 60 | . 8 52 Damage Taken 2121 | . 197 1924 Core 451 | . 43 408 Absorbed by Shields . | . . . Core Remaining (%) 91 | 100 82 . Volleys Fired 87 | . 16 71 Largest 2 | . 2 2 Hottest 101 | . 60 101 Shots Fired 163 | . 32 131 Gun 163 | . 32 131 Cannon . | . . . Launcher . | . . . Special . | . . . Kinetic 89 | . 16 73 Thermal 40 | . . 40 Explosive . | . . . Electromagnetic 34 | . 16 18 Robot Hit Streak 18 | . 5 18 Robot Miss Streak 3 | . 2 3 Penetration Max . | . . . Secondary Targets 5 | . 2 3 Max Gunslinging Chain 1 | . 1 1 Shots Hit Robots 121 | . 18 103 Core Hits 52 | . 15 37 Critical Kills . | . . . Critical Parts Destroyed . | . . . Critical Strikes 4 | . . 4 Burn 3 | . . 3 Corrupt 1 | . . 1 Melee Attacks . | . . . Impact . | . . . Slashing . | . . . Piercing . | . . . Sneak Attacks . | . . . Combat Hostiles . | . . . Follow-up Attacks . | . . . Damage Inflicted 1418 | . 199 1219 Guns 1328 | . 193 1135 Cannons . | . . . Explosions 68 | . . 68 Melee . | . . . Ramming 22 | . 6 16 Kinetic 533 | . 82 451 Thermal 546 | . . 546 Explosive . | . . . Electromagnetic 317 | . 111 206 Impact . | . . . Slashing . | . . . Piercing . | . . . Highest Corruption . | . . . Average Corruption . | . . . Corruption Purged . | . . . Corruption Blocked . | . . . Overload Shots . | . . . Overflow Damage . | . . . Projectiles . | . . . Explosions . | . . . Melee . | . . . Knockbacks . | . . . Impact . | . . . Kinetic . | . . . Secondary . | . . . Self-Inflicted Damage . | . . . Shots . | . . . Rammed 6 | . 1 5 Targets Rammed 9 | . 4 5 Kicked 3 | . 3 . Crushed . | . . . Highest Temperature 376 | . 160 376 Average Temperature 91 | . 54 103 Received Heat Transfer 945 | . 111 834 Effects 4 | . . 4 Energy Bleed 2 | . . 2 Interference 2 | . . 2 Siege Activations . | . . . Robots Corrupted . | . . . Combat Hostiles . | . . . Parts Fried . | . . . Impact Corruptions . | . . . Robots Melted . | . . . Combat Hostiles . | . . . Parts Melted 1 | . . 1 Heat Transferred 1543 | . . 1543 Parts Sabotaged . | . . . Parts Stolen . | . . . Parts Stripped . | . . . Power Chain Reactions 1 | . . 1 Alert | -11 -10 -9 ------- Run | Yrd Mat Mat Peak Influence 185 | . 173 185 Initial 15 | . . 15 Average 81 | . 95 83 Maximum Alert Level 1 | . . 1 Low Security (%) 99 | 100 100 99 Level 1 . | . . . Level 2 . | . . . Level 3 . | . . . Level 4 . | . . . Level 5 . | . . . High Security . | . . . Max Security . | . . . Squads Dispatched 7 | . 3 4 Investigation 2 | . 1 1 Extermination . | . . . Reinforcement 5 | . 2 3 Assault . | . . . Garrison . | . . . Intercept . | . . . Searches Triggered . | . . . Construction Impeded . | . . . Haulers Reinforced . | . . . Active Scanning Responses . | . . . Cargo Convoy Interrupts . | . . . Stealth | -11 -10 -9 --------- Run | Yrd Mat Mat Distress Signals 1 | . . 1 Communications Jammed . | . . . Distress Signals . | . . . Times Spotted 37 | . 8 29 Peak Tracking Total 8 | . 2 8 Tactical Retreats 3 | . . 3 Traps | -11 -10 -9 ------- Run | Yrd Mat Mat Traps Triggered 2 | . 1 1 Indirectly . | . . . Trap Hack Attempts . | . . . Triggered . | . . . Disarmed . | . . . Reprogrammed . | . . . Reused . | . . . Traps Extracted . | . . . Installed . | . . . Triggered . | . . . Machines | -11 -10 -9 ---------- Run | Yrd Mat Mat Machines Disabled 2 | . 1 1 Max in Single Turn 1 | . 1 1 Machines Repaired . | . . . Machines Dismantled . | . . . Machines Sabotaged . | . . . Overloaded Fab Kills . | . . . Hacking | -11 -10 -9 --------- Run | Yrd Mat Mat Machines Accessed 2 | . 2 . Terminals 2 | . 2 . Fabricators . | . . . Repair Stations . | . . . Recycling Units . | . . . Scanalyzers . | . . . Garrison Access . | . . . Total Hacks 3 | . 3 . Successful 2 | . 2 . Failed 1 | . 1 . Catastrophic . | . . . Database Lockouts . | . . . Manual . | . . . Terminals 3 | . 3 . Fabricators . | . . . Repair Stations . | . . . Recycling Units . | . . . Scanalyzers . | . . . Garrison Access . | . . . Terminal Hacks 2 | . 2 . Surveillance Status 1 | . 1 . Registered Components 1 | . 1 . Fabricator Hacks . | . . . Repair Station Hacks . | . . . Recycling Unit Hacks . | . . . Scanalyzer . | . . . Garrison Access Hacks . | . . . Unauthorized Hacks . | . . . Terminals . | . . . Fabricators . | . . . Repair Stations . | . . . Recycling Units . | . . . Scanalyzers . | . . . Garrison Access . | . . . Data Cores Recovered . | . . . Used . | . . . Hacking Detections 1 | . 1 . Full Trace Events . | . . . Feedback Events . | . . . Feedback Blocked . | . . . Robot Schematics Acquired . | . . . Robots Built . | . . . Authchips . | . . . Time . | . . . Total Robot Build Rating . | . . . Part Schematics Acquired . | . . . Parts Built . | . . . Authchips . | . . . Time . | . . . Total Part Build Rating . | . . . Parts Repaired . | . . . Time . | . . . Parts Recycled . | . . . Recycled Matter . | . . . Retrieved Matter . | . . . Retrieved Components . | . . . Parts Scanalyzed . | . . . Part Schematics Acquired . | . . . Parts Damaged . | . . . Bothacking | -11 -10 -9 ------------ Run | Yrd Mat Mat Used RIF Installer . | . . . Robots Hacked . | . . . Non-combat . | . . . Combat . | . . . Robot Hacks Applied . | . . . Relay Couplers Released . | . . . Fabnet Peak Effective % . | . . . Robots Rewired . | . . . Allies Hacked . | . . . Hacks Repelled . | . . . Allies | -11 -10 -9 -------- Run | Yrd Mat Mat Total Allies . | . . . Largest Group . | . . . Highest-Rated Group . | . . . Highest-Rated Ally . | . . . Total Orders . | . . . Ally Attacks . | . . . Total Damage . | . . . Kills . | . . . Allies Corrupted . | . . . Allies Melted . | . . . Intel | -11 -10 -9 ------- Run | Yrd Mat Mat Robot Analysis Total . | . . . Derelict Logs Recovered . | . . . Drone Launches . | . . . Drone Recoveries . | . . . Exploration | -11 -10 -9 ------------- Run | Yrd Mat Mat Turns Passed 1437 | 91 430 916 Spaces Moved 688 | 57 220 411 Core 16 | 11 . 5 Treads 576 | 46 178 352 Legs 96 | . 42 54 Wheels . | . . . Hover . | . . . Flight . | . . . Fastest Speed 50 | 50 120 120 Average Speed 160 | 138 154 166 Slowest Speed 400 | 160 190 400 Overloaded Moves . | . . . Propulsion Burnouts . | . . . Robots Hopped . | . . . Cave-ins Triggered . | . . . Exploration Rate (%) 28 | 3 45 38 Regions Visited 2 Branch Regions . Pre-discovered Areas . | . . . Known Exits Taken . | . . . Unknown Exits Taken 2 | 1 1 . Scrap Searched . | . . . Spaces Dug . | . . . Terrain Destroyed 3 | . . 3 Melee . | . . . Projectile . | . . . AOE 3 | . . 3 Terrain Rammed . | . . . Walls Destroyed . | . . . Machines Disabled . | . . . Actions | -11 -10 -9 --------- Run | Yrd Mat Mat Total 869 | 67 282 520 Wait 39 | . 29 10 Move 686 | 56 219 411 Hop . | . . . Pick Up 15 | 3 6 6 Fast Attach 14 | 6 2 6 Attach 9 | 1 1 7 Detach 4 | 1 1 2 Swap 2 | . . 2 Drop 4 | . 4 . Fire 87 | . 16 71 Melee . | . . . Ram . | . . . Kick 3 | . 3 . Crush 6 | . 1 5 Escape Stasis . | . . . Rewire . | . . . Trap . | . . . Miscellaneous . | . . . Route ------- -11/Scrapyard -10/Materials (discovered 2 exits: [*Mat] / [*Min]) -9/Materials (discovered 1 exit: [*Sto]) History --------- Turn | Location | Event 2 | -11/Scrapyard | Discovered new exit (range 16) 92 | -11/Scrapyard | Entered Materials 300 | -10/Materials | Discovered new exit (range 13) 301 | -10/Materials | Build established: Mutant 480 | -10/Materials | Discovered new exit (range 5) 522 | -10/Materials | Entered another Materials area 522 | -9/Materials | Evolved 2 slots: Propulsion x1, Utility x1 679 | -9/Materials | Lost 6 parts (1p3n1u1w) 1006 | -9/Materials | Discovered new exit (range 6) 1387 | -9/Materials | Core integrity fell below 50% 1430 | -9/Materials | Core integrity fell below 20% 1438 | -9/Materials | Destroyed by G-47 Trooper with Particle Gun Last Messages --------------- Beam Rifle destroyed. Acquired 40 matter. Lgt. Treads destroyed. Imp. Light Armor Plating destroyed. Hvy. EM Pulse Gun destroyed. Electrolysis Chamber disabled. Y-45 Defender destroyed. G-34 Mercenary suffers critical hit (Burn). G-34 Mercenary destroyed. Acquired 2 matter. G-34 Mercenary destroyed. Switching to secondary target: Y-45 Defender. Lgt. Assault Rifle destroyed. K-01 Serf collects debris. M-13 Machinist repairs Y-45 Defender. K-01 Serf collects debris. Beam Rifle destroyed. K-01 Serf collects debris. G-34 Mercenary IFF system glitched. K-01 Serf collects debris. Map ----- +----------------------------------------------------+ | ????????????????????????????# #????????????????? | | ????????????????????????????# #????????????????? | | ????????????????????????????# #????????????????? | | ????????????????????????????# #????????????????? | | ????????????????????????????# /????????????????? | | ????????????????????????????#!%*#????????????????? | | ?????????????????????#?###??# = #????????????????? | | ??????????????????#### #"""?# #????????????????? | | ??????????????????# =%[?# #????????????????? | | ??????????????????#!![ # #????????????????? | | ??????????????????#!! # #????????????????? | | ??????????????????#!! "" / /????????????????? | | ??????????????????# T" # #????????????????? | | ??????????????????# "" # #????????????????? | | ??????????????????# ""?# #????????????????? | | ??????????????????? ?# #????????????????? | | ??????????????????########### #????????????????? | | ??????????????????# !# #????????????????? | | ??????????????????# # #????????????????? | | ??????????????????# # #????############# | | ??????????????????# """ """k/ #????# | | ??????????????????# """ ""gg# #????# """ "" | | ??????????????????# """ " m=# #????# """ T" | | ??????????????????# Y%% # #????# """ "" | | ??????????????????# =%! # #????# | | ??????????????????#######@### ############+##### | | ????????????????? =uu | | ????????????????? ak | | ????????????????? """ | | ????????????????? """ #################+ | | ??????????????? """ #??????????????? | | ?????????????#T #?????????????? | | ??????????????# = #?????????????"" | | ??????????????# """ #????????????""" | | ??????????????# """ +???????????#""" | | ??????????????# ???"" #????????????? | | ??????????????###??????? t #??????????????### | | ???????????????????????? !#????????????????? | | ???????????????????????""" #????????????????? | | ?????????????????????????" ?????????????????? | | ???????????????????????????? ?????????????????? | | ?????????????????????????????????????????????????? | | ?????????????????????????????????????????????????? | | ?????????????????????????????????????????????????? | | ?????????????????????????????????????????????????? | | ?????????????????????????????????????????????????? | | ?????????????????????????????????????????????????? | | ?????????????????????????????????????????????????? | | ?????????????????????????????????????????????????? | | ????????????????????????????????????????????????## | +----------------------------------------------------+ Best States ------------- Heat Dissipation 38 Energy Generation 12 Energy Capacity 265 Matter Stores 300 Matter Capacity 300 Sight Range 16 Terrain Scan Density 10 Additional Mass Support 9 Armor Coverage 150 Evasion (%) 55 Recoil Reduction 3 Item Schematics ----------------- None Robot Schematics ------------------ None Fabricated ------------ Nothing Alien Tech Used ----------------- None Achievements -------------- None Challenges ------------ None Game ------ Seed ShrapnelParticleMallet Manual? 0 Play Time 00:12:57 Cumulative 8.9 hours Start 2025.01.18 @ 23:56:42 End 2025.01.19 @ 00:07:13 Sessions 1 Manual Loads 0 Difficulty Rogue Special Mode None Game No. 25 Rogue 25 Adventurer 0 Explorer 0 Win Type - Total 0 Types 0/0/0/0/0/0/0/0/0 Lore% 8 Gallery% 16 Achievement% 16 Wizard Run 0 Options --------- Layout 2 ASCII 0 Keyboard 1 Movement Numpad Keybinds 0 Fullscreen 1 Font 32/SmallcapsGlow Map View 50x44 Zoom Use 0% Tactical HUD 0 Map Filters NONE Filters NONE Steam 1 RUN: 38d55736-d3d3-441f-9afd-1f2aadf3b5e2